bitfinex-derivatives/quotes_BTCF0:USTF0_20250724
["timestamp","ask_amount","ask_price","bid_price","bid_amount"]
[1753377430122,0.88815084,118890.0,118880.0,1.07795]
[1753377430533,0.88815084,118890.0,118880.0,0.35277]
[1753377430734,0.88815084,118890.0,118880.0,0.96773]
[1753377430928,0.88815084,118890.0,118880.0,0.46137]
[1753377431135,0.88815084,118890.0,118880.0,1.07625]
[1753377431931,0.6284784,118880.0,118870.0,0.32885]
[1753377432132,0.3110666,118860.0,118850.0,1.16551841]
[1753377432338,0.5789766,118860.0,118850.0,2.03578431]
[1753377432637,0.70525469,118860.0,118850.0,2.03578431]
[1753377432826,0.65277469,118860.0,118850.0,1.61770297]
[1753377433132,0.65277469,118860.0,118850.0,2.03578431]
[1753377433526,0.65277469,118860.0,118850.0,1.61770297]
[1753377433929,0.65277469,118860.0,118850.0,2.03878431]
[1753377434129,0.65277469,118860.0,118850.0,2.04178431]
[1753377435134,0.67393569,118860.0,118850.0,2.04178431]
[1753377435530,0.67393569,118860.0,118850.0,1.62370297]
[1753377435828,0.67393569,118860.0,118850.0,2.04178431]
[1753377436033,0.72641569,118860.0,118850.0,2.04178431]
[1753377436234,0.77594569,118860.0,118850.0,1.87360401]
[1753377436436,0.77594569,118860.0,118850.0,1.42774]
[1753377436631,0.77594569,118860.0,118850.0,2.01401214]
[1753377437631,0.77594569,118860.0,118850.0,1.39985214]
[1753377437826,0.77594569,118860.0,118850.0,1.5958508]
[1753377438034,0.77594569,118860.0,118850.0,2.01393214]
[1753377439529,0.77594569,118860.0,118850.0,2.01345214]
[1753377440135,0.77594569,118860.0,118850.0,2.0217477]
[1753377440933,0.77594569,118860.0,118850.0,2.01345214]
[1753377441435,0.82127295,118860.0,118850.0,2.01345214]
[1753377441837,0.72346569,118860.0,118850.0,2.01345214]
[1753377442138,0.67393569,118860.0,118850.0,2.01345214]
[1753377442338,0.71926295,118860.0,118850.0,2.01345214]
[1753377442533,0.14743909,118860.0,118850.0,1.39985214]
[1753377442735,0.14743909,118860.0,118850.0,1.81793348]
[1753377442931,0.14743909,118860.0,118850.0,2.01285214]
[1753377443127,0.31561589,118860.0,118850.0,2.01285214]
[1753377443338,0.14743909,118860.0,118850.0,2.01285214]
[1753377443928,0.31561589,118860.0,118850.0,2.01285214]
[1753377444635,0.14743909,118860.0,118850.0,2.01285214]
[1753377445634,0.31561589,118860.0,118850.0,2.01285214]
[1753377448242,0.31561589,118860.0,118850.0,2.01177214]
[1753377448436,0.31561589,118860.0,118850.0,1.5936908]
[1753377448644,0.31561589,118860.0,118850.0,2.01177214]
[1753377449142,0.31561589,118860.0,118850.0,1.95042276]
[1753377449644,0.14743909,118860.0,118850.0,1.95042276]
[1753377449847,0.14743909,118860.0,118850.0,1.33850276]
[1753377450046,0.31561589,118860.0,118850.0,1.95010276]
[1753377450741,0.14743909,118860.0,118850.0,1.33850276]
[1753377450940,0.04532726,118870.0,118860.0,0.1681768]
[1753377451145,0.02060741,118880.0,118870.0,0.4716027]
[1753377451443,0.2597107,118890.0,118880.0,0.6357286]
[1753377451643,0.6180307,118890.0,118880.0,0.99246056]
[1753377451840,0.7975167,118890.0,118880.0,0.99246056]
[1753377452647,0.7985167,118890.0,118880.0,0.99246056]
[1753377453144,0.7985167,118890.0,118880.0,1.05362557]
[1753377454539,0.7985167,118890.0,118880.0,1.66422557]
[1753377457049,0.7985167,118890.0,118880.0,1.66322557]
[1753377457246,0.7460367,118890.0,118880.0,1.66322557]
[1753377458250,0.7985167,118890.0,118880.0,0.6357286]
[1753377458460,0.7985167,118890.0,118880.0,1.66286557]
[1753377459356,0.6965067,118890.0,118880.0,1.66286557]
[1753377460855,0.6965067,118890.0,118880.0,1.68286557]
[1753377461058,0.6965067,118890.0,118880.0,2.00286557]
[1753377461356,0.6049305,118890.0,118880.0,1.05362557]
[1753377461557,0.4390305,118890.0,118880.0,2.03226557]
[1753377461757,0.2961405,118890.0,118880.0,2.03226557]
[1753377462658,0.2961405,118890.0,118880.0,1.6143686]
[1753377462855,0.2961405,118890.0,118880.0,2.03226557]
[1753377463059,0.14818664,118890.0,118880.0,2.03226557]
[1753377463254,0.31632114,118890.0,118880.0,2.03226557]
[1753377463460,0.14818664,118890.0,118880.0,2.03226557]
[1753377464061,0.14818664,118890.0,118880.0,2.46709757]
[1753377464261,0.2565864,118910.0,118900.0,0.4046503]
[1753377464465,0.2565864,118910.0,118900.0,1.06376727]
[1753377464656,0.38229547,118910.0,118900.0,1.09376727]
[1753377465055,0.41277547,118910.0,118900.0,1.09376727]
[1753377465359,0.67636547,118910.0,118900.0,1.09376727]
[1753377465558,0.67836547,118910.0,118900.0,1.09376727]
[1753377465758,0.73084547,118910.0,118900.0,1.09376727]
[1753377466661,0.73084547,118910.0,118900.0,1.43376727]
[1753377466963,0.73084547,118910.0,118900.0,0.6458703]
[1753377467162,0.73084547,118910.0,118900.0,1.06376727]
[1753377467564,0.73084547,118910.0,118900.0,1.0723546]
[1753377470453,0.77955547,118910.0,118900.0,1.0723546]
[1753377470756,0.77955547,118910.0,118900.0,1.6797146]
[1753377474468,0.77955547,118910.0,118900.0,1.26181763]
[1753377474668,0.77955547,118910.0,118900.0,1.6797146]
[1753377475168,0.77955547,118910.0,118900.0,1.61829276]
[1753377476370,0.79881566,118910.0,118900.0,1.61829276]
[1753377477172,0.79881852,118910.0,118900.0,1.61829276]
[1753377478274,0.79881852,118910.0,118900.0,1.60829276]
[1753377478569,0.79881852,118910.0,118900.0,1.93829276]
[1753377478570,0.36453182,118910.0,118900.0,1.93829276]
[1753377478972,0.36453182,118910.0,118900.0,1.95829276]
[1753377480176,0.14997212,118910.0,118900.0,1.95829276]
[1753377480377,0.14997212,118910.0,118900.0,2.31476789]
[1753377480573,0.14997212,118910.0,118900.0,1.95829276]
[1753377480969,0.14997212,118910.0,118900.0,1.35093276]
[1753377481175,0.19642212,118910.0,118900.0,1.95653276]
[1753377481679,0.14997212,118910.0,118900.0,1.95653276]
[1753377482075,0.14797212,118910.0,118900.0,1.95653276]
[1753377483076,0.14497212,118910.0,118900.0,1.95653276]
[1753377483574,0.04526594,118920.0,118910.0,0.1681062]
[1753377483772,0.04526594,118920.0,118910.0,1.60350646]
[1753377483968,0.12557976,118920.0,118910.0,1.60350646]
[1753377484168,0.09171594,118930.0,118920.0,0.5405421]
[1753377484375,0.09171594,118930.0,118920.0,2.20901236]
[1753377484574,0.21715099,118930.0,118920.0,2.20901236]
[1753377485872,0.21915099,118930.0,118920.0,2.20901236]
[1753377486480,0.22215099,118930.0,118920.0,2.20901236]
[1753377489477,0.17570099,118930.0,118920.0,2.20901236]
[1753377490578,0.22078099,118930.0,118920.0,2.20901236]
[1753377493280,0.17570099,118930.0,118920.0,2.39561965]
[1753377493482,0.06035614,118940.0,118930.0,0.4900779]
[1753377493786,0.27348584,118950.0,118940.0,0.4900638]
[1753377494083,0.39915172,118950.0,118940.0,1.83193893]
[1753377494283,0.70581172,118950.0,118940.0,1.45193893]
[1753377494882,0.82031172,118950.0,118940.0,1.45193893]
[1753377495083,0.82031172,118950.0,118940.0,1.82193893]
[1753377495284,0.75995558,118950.0,118940.0,1.78193893]
[1753377495785,0.78342551,118950.0,118940.0,1.0954638]
[1753377495988,0.78342551,118950.0,118940.0,1.45193893]
[1753377496389,0.78642551,118950.0,118940.0,1.45185893]
[1753377497088,0.78642551,118950.0,118940.0,0.84653893]
[1753377497289,0.78642551,118950.0,118940.0,1.45185893]
[1753377497691,0.78642551,118950.0,118940.0,1.28379513]
[1753377498485,0.6343038,118940.0,118930.0,0.73606313]
[1753377498691,0.65277373,118940.0,118930.0,1.66138313]
[1753377498987,0.77816692,118940.0,118930.0,1.66138313]
[1753377499689,0.78016692,118940.0,118930.0,1.66138313]
[1753377500690,0.78016692,118940.0,118930.0,1.304908]
[1753377500889,0.78016692,118940.0,118930.0,1.66138313]
[1753377502890,0.78016692,118940.0,118930.0,1.004908]
[1753377503090,0.78016692,118940.0,118930.0,1.36138313]
[1753377503290,0.78316692,118940.0,118930.0,1.004908]
[1753377503490,0.78316692,118940.0,118930.0,1.36138313]
[1753377504987,0.78316692,118940.0,118930.0,1.19330513]
[1753377505286,0.78316692,118940.0,118930.0,0.83683]
[1753377505494,0.78316692,118940.0,118930.0,0.62532]
[1753377505686,0.78316692,118940.0,118930.0,0.6252]
[1753377505888,0.78316692,118940.0,118930.0,0.02]
[1753377506589,0.78316692,118940.0,118930.0,0.793278]
[1753377506790,0.78316692,118940.0,118930.0,0.839198]
[1753377506990,0.78316692,118940.0,118930.0,0.910088]
[1753377507193,0.76469699,118940.0,118930.0,1.36126313]
[1753377508592,0.76469699,118940.0,118930.0,1.004788]
[1753377508790,0.76469699,118940.0,118930.0,1.36126313]
[1753377510095,0.76469699,118940.0,118930.0,1.47175313]
[1753377511795,0.78305236,118940.0,118930.0,1.115278]
[1753377511996,0.78305236,118940.0,118930.0,1.47175313]
[1753377513994,0.78305116,118940.0,118930.0,1.47175313]
[1753377514195,0.78305162,118940.0,118930.0,1.47175313]
[1753377515997,0.54657782,118940.0,118930.0,1.47175313]
[1753377516195,0.19382782,118940.0,118930.0,1.81175313]
[1753377516496,0.13039319,118940.0,118930.0,1.81175313]
[1753377516688,0.03569319,118940.0,118930.0,1.81175313]
[1753377518792,0.03469319,118940.0,118930.0,1.81175313]
[1753377519595,0.03369319,118940.0,118930.0,1.81175313]
[1753377523901,0.07929319,118940.0,118930.0,1.81175313]
[1753377526604,0.03369319,118940.0,118930.0,1.81175313]
[1753377528805,0.0456,118960.0,118950.0,0.2579021]
[1753377528996,0.23197832,118960.0,118950.0,1.71189203]
[1753377529195,0.19068274,118960.0,118950.0,1.71189203]
[1753377529605,0.19068274,118960.0,118950.0,2.06836716]
[1753377530007,0.19468274,118960.0,118950.0,2.06836716]
[1753377530208,0.17634002,118960.0,118950.0,2.06836716]
[1753377530400,0.17634002,118960.0,118950.0,1.66987963]
[1753377530401,0.37661562,118960.0,118950.0,1.66987963]
[1753377530596,0.64036562,118960.0,118950.0,1.66987963]
[1753377531907,0.64036562,118960.0,118950.0,1.67816919]
[1753377532308,0.66172989,118960.0,118950.0,1.67816919]
[1753377533504,0.78299989,118960.0,118950.0,1.03135679]
[1753377533706,1.13547502,118960.0,118950.0,0.7204393]
[1753377533897,1.38547502,118960.0,118950.0,0.6725993]
[1753377534104,0.6309238,118940.0,118930.0,0.48130396]
[1753377534406,0.75642,118940.0,118930.0,0.76077883]
[1753377534804,0.77479873,118940.0,118930.0,0.76077883]
[1753377535103,0.77479873,118940.0,118930.0,0.71397883]
[1753377535304,0.77479873,118940.0,118930.0,0.27737673]
[1753377535509,0.77479873,118940.0,118930.0,0.88301673]
[1753377535709,0.77479873,118940.0,118930.0,0.99954673]
[1753377536211,0.77479873,118940.0,118930.0,1.35602186]
[1753377536509,0.77479873,118940.0,118930.0,0.99954673]
[1753377537103,0.77479873,118940.0,118930.0,0.70664]
[1753377537308,1.13127386,118940.0,118930.0,0.70664]
[1753377537609,0.77479873,118940.0,118930.0,0.60664]
[1753377540601,1.13127386,118940.0,118930.0,0.002]
[1753377540805,0.3555621,118920.0,118910.0,0.12513896]
[1753377541006,0.6309521,118920.0,118910.0,1.07969896]
[1753377541210,0.75737286,118920.0,118910.0,1.0024]
[1753377541508,1.11384799,118920.0,118910.0,0.65456]
[1753377541711,0.6309662,118910.0,118900.0,1.24568413]
[1753377541899,0.6309662,118910.0,118900.0,0.98112413]
[1753377542103,0.75738696,118910.0,118900.0,1.58568413]
[1753377542810,0.75738696,118910.0,118900.0,1.5942636]
[1753377543212,0.75738696,118910.0,118900.0,1.23778987]
[1753377544316,0.75738696,118910.0,118900.0,1.594265]
[1753377545409,0.68521696,118910.0,118900.0,1.65434304]
[1753377545611,0.68521696,118910.0,118900.0,1.29786791]
[1753377545810,0.68521696,118910.0,118900.0,1.65434304]
[1753377548317,0.75738696,118910.0,118900.0,1.65434304]
[1753377548913,0.12642076,118910.0,118900.0,1.65434304]
[1753377549312,0.34165696,118910.0,118900.0,1.65434304]
[1753377549515,0.17355076,118910.0,118900.0,1.65434304]
[1753377550317,0.17355076,118910.0,118900.0,1.65534304]
[1753377550719,0.12642076,118910.0,118900.0,1.65634304]
[1753377552327,0.12642076,118910.0,118900.0,1.29986791]
[1753377552529,0.12642076,118910.0,118900.0,1.65634304]
[1753377553325,0.12642076,118910.0,118900.0,1.596265]
[1753377553528,0.12642076,118910.0,118900.0,2.02783768]
[1753377553529,0.05750146,118910.0,118900.0,2.02783768]
[1753377553827,0.05750146,118910.0,118900.0,1.67136255]
[1753377556125,0.05750146,118910.0,118900.0,1.65647524]
[1753377557425,0.05750146,118910.0,118900.0,2.01295037]
[1753377557626,0.05750146,118910.0,118900.0,1.65647524]
[1753377557827,0.05750146,118910.0,118900.0,2.01295037]
[1753377559127,0.04713,118930.0,118900.0,2.01302997]
[1753377559326,0.04713,118930.0,118920.0,0.99746236]
[1753377559528,0.17380126,118930.0,118920.0,1.98174236]
[1753377559723,0.12667126,118930.0,118920.0,1.98174236]
[1753377560122,0.12667126,118930.0,118920.0,2.00024064]
[1753377561130,0.12767126,118930.0,118920.0,2.00024064]
[1753377561431,0.12867126,118930.0,118920.0,2.00024064]
[1753377561924,0.17580126,118930.0,118920.0,2.00024064]
[1753377562330,0.17480126,118930.0,118920.0,2.00024064]
[1753377562733,0.17480126,118930.0,118920.0,2.00324064]
[1753377562935,0.17380126,118930.0,118920.0,2.00524064]
[1753377565640,0.17380126,118930.0,118920.0,2.06545088]
[1753377569442,0.17380126,118930.0,118920.0,2.00524064]
[1753377571541,0.17380126,118930.0,118920.0,2.06545088]
[1753377572441,0.17380126,118930.0,118920.0,1.68545088]
[1753377575240,0.17380126,118930.0,118920.0,1.62524064]
[1753377578246,0.17380126,118930.0,118920.0,1.68545088]
[1753377579745,0.12667126,118930.0,118920.0,1.95205088]
[1753377580050,0.46386,118940.0,118930.0,0.285648]
[1753377580248,0.46386,118940.0,118930.0,0.64212313]
[1753377580448,0.5897728,118940.0,118930.0,0.64212313]
[1753377581450,0.5897728,118940.0,118930.0,0.64312313]
[1753377582050,0.5897728,118940.0,118930.0,0.64412313]
[1753377589355,0.5897728,118940.0,118930.0,0.70433337]
[1753377589556,0.5897728,118940.0,118930.0,0.64412313]
[1753377591558,0.5897728,118940.0,118930.0,0.70433337]
[1753377595560,0.5897728,118940.0,118930.0,0.64412313]
[1753377596958,0.5897728,118940.0,118930.0,1.30745337]
[1753377597560,0.5897728,118940.0,118930.0,1.24724313]
[1753377597761,0.5897728,118940.0,118930.0,0.64412313]
[1753377598060,0.5897728,118940.0,118930.0,1.24720313]
[1753377600156,0.7578366,118940.0,118930.0,0.64412313]
[1753377600361,0.7578366,118940.0,118930.0,0.35847513]
[1753377600564,0.7578366,118940.0,118930.0,0.170078]
[1753377600861,0.7578366,118940.0,118930.0,0.773078]
[1753377601058,0.7578366,118940.0,118930.0,1.12955313]
[1753377601759,0.7578366,118940.0,118930.0,1.19914313]
[1753377602665,0.5897728,118940.0,118930.0,1.19914313]
[1753377602961,0.5897728,118940.0,118930.0,1.54914313]
[1753377604062,0.5897728,118940.0,118930.0,1.60935337]
[1753377605663,0.5897728,118940.0,118930.0,1.25287824]
[1753377605858,0.5897728,118940.0,118930.0,1.60935337]
[1753377609669,0.1755628,118940.0,118930.0,1.54914313]
[1753377610168,0.5178628,118940.0,118930.0,1.54914313]
[1753377610366,0.5877828,118940.0,118930.0,1.54914313]
[1753377612876,0.5877828,118940.0,118930.0,1.60935337]
[1753377618383,0.7558466,118940.0,118930.0,1.05142337]
[1753377618679,0.7558466,118940.0,118930.0,0.98079513]
[1753377618977,0.7558466,118940.0,118930.0,0.62432]
[1753377619176,0.7558466,118940.0,118930.0,1.14887303]
[1753377619374,0.7558466,118940.0,118930.0,0.98079513]
[1753377620378,0.7558466,118940.0,118930.0,0.022]
[1753377620580,0.77446366,118940.0,118930.0,0.62432]
[1753377620783,0.77446366,118940.0,118930.0,0.60432]
[1753377621379,1.29909879,118940.0,118930.0,0.60424]
[1753377621576,0.6272879,118930.0,118920.0,0.60861003]
[1753377621782,0.6272879,118930.0,118920.0,1.54081003]
[1753377622080,0.753517,118930.0,118920.0,1.54081003]
[1753377622985,0.753517,118930.0,118920.0,1.34081003]
[1753377623583,0.755517,118930.0,118920.0,1.34081003]
[1753377623780,0.755517,118930.0,118920.0,1.41163003]
[1753377626483,0.755517,118930.0,118920.0,1.76810516]
[1753377626889,0.755517,118930.0,118920.0,1.99810516]
[1753377627491,0.7535171,118930.0,118920.0,1.99810516]
[1753377627788,0.7545171,118930.0,118920.0,1.99810516]
[1753377629287,0.7545171,118930.0,118920.0,2.00010516]
[1753377630186,0.754517,118930.0,118920.0,2.00010516]
[1753377632188,0.754517,118930.0,118920.0,1.99810516]
[1753377634795,0.754517,118930.0,118920.0,1.2851549]
[1753377634997,0.754517,118930.0,118920.0,1.95608216]
[1753377635198,0.754517,118930.0,118920.0,2.0162924]
[1753377636096,0.754517,118930.0,118920.0,1.65981727]
[1753377638790,0.754517,118930.0,118920.0,1.59960703]
[1753377641902,0.754517,118930.0,118920.0,1.55758723]
[1753377642093,0.754517,118930.0,118920.0,0.36]
[1753377642294,1.12959855,118930.0,118920.0,0.36]
[1753377642495,0.1680921,118920.0,118910.0,0.2101214]
[1753377642797,0.72938034,118920.0,118910.0,1.51803653]
[1753377643295,0.72938034,118920.0,118910.0,0.95144]
[1753377643489,0.72938034,118920.0,118910.0,1.1195462]
[1753377643900,0.72938034,118920.0,118910.0,1.1205462]
[1753377644100,0.49147034,118920.0,118910.0,1.1205462]
[1753377644301,0.72938034,118920.0,118910.0,0.95244]
[1753377644501,1.08585547,118920.0,118910.0,0.95244]
[1753377644701,1.08585547,118920.0,118910.0,1.1205462]
[1753377645400,0.72938034,118920.0,118910.0,1.1205462]
[1753377645799,0.72938034,118920.0,118910.0,1.47702133]
[1753377646302,0.73038034,118920.0,118910.0,1.47702133]
[1753377646602,0.73038034,118920.0,118910.0,1.47602133]
[1753377647005,0.73038034,118920.0,118910.0,1.30791513]
[1753377648502,0.73038034,118920.0,118910.0,0.95144]
[1753377648705,0.73038034,118920.0,118910.0,1.30791513]
[1753377650105,1.33154034,118920.0,118910.0,1.30791513]
[1753377650705,1.33154034,118920.0,118910.0,1.47602133]
[1753377651204,1.33154034,118920.0,118910.0,1.54394133]
[1753377651505,1.33154034,118920.0,118910.0,1.01936]
[1753377651710,1.33154034,118920.0,118910.0,1.37583513]
[1753377652006,0.73038034,118920.0,118910.0,1.37583513]
[1753377652505,0.73038034,118920.0,118910.0,1.30791513]
[1753377653303,0.73038034,118920.0,118910.0,1.37583513]
[1753377653601,0.73038034,118920.0,118910.0,1.54394143]
[1753377654096,0.73038034,118920.0,118910.0,1.54594143]
[1753377657603,0.17656824,118920.0,118910.0,1.54594143]
[1753377657803,0.34466034,118920.0,118910.0,1.54594143]
[1753377659204,0.12709824,118920.0,118910.0,1.90241656]
[1753377659404,0.12709824,118920.0,118910.0,1.90341656]
[1753377659708,0.12409824,118920.0,118910.0,1.90341656]
[1753377660611,0.04947,118930.0,118920.0,0.2137321]
[1753377660806,0.04947,118940.0,118930.0,0.06792]
[1753377661008,0.04947,118940.0,118930.0,1.62924503]
[1753377661207,0.17644582,118940.0,118930.0,1.62924503]
[1753377661405,0.19503306,118940.0,118930.0,1.62924503]
[1753377661600,0.19503306,118940.0,118930.0,1.31924503]
[1753377661899,0.17644582,118940.0,118930.0,1.36924503]
[1753377662111,0.34450962,118940.0,118930.0,1.36924503]
[1753377662415,0.36309819,118940.0,118930.0,1.36924503]
[1753377662610,0.34450962,118940.0,118930.0,1.36924503]
[1753377662914,0.37780962,118940.0,118930.0,1.32722723]
[1753377663110,0.63430869,118940.0,118930.0,1.32722723]
[1753377663507,0.61571962,118940.0,118930.0,1.32722723]
[1753377663915,0.61371962,118940.0,118930.0,1.32822723]
[1753377665209,0.63231011,118940.0,118930.0,1.32822723]
[1753377665415,0.67967011,118940.0,118930.0,1.32822723]
[1753377665713,0.67967011,118940.0,118930.0,1.34725856]
[1753377666412,0.74982011,118940.0,118930.0,1.34725856]
[1753377666715,0.74882011,118940.0,118930.0,1.34725856]
[1753377667415,0.58075631,118940.0,118930.0,1.34725856]
[1753377668716,0.51060631,118940.0,118930.0,1.34725856]
[1753377668918,0.67867011,118940.0,118930.0,1.34725856]
[1753377669216,0.67867011,118940.0,118930.0,1.03642343]
[1753377669415,0.67867011,118940.0,118930.0,1.39289856]
[1753377669714,0.74705011,118940.0,118930.0,1.39289856]
[1753377670511,0.57898631,118940.0,118930.0,1.39289856]
[1753377671216,0.74705001,118940.0,118930.0,1.39289856]
[1753377673518,0.57898631,118940.0,118930.0,1.39289856]
[1753377673920,0.51060631,118940.0,118930.0,1.39289856]
[1753377674619,0.67867011,118940.0,118930.0,1.39289856]
[1753377675116,0.67867011,118940.0,118930.0,1.37386723]
[1753377675320,0.66007962,118940.0,118930.0,1.37386723]
[1753377676720,0.66007962,118940.0,118930.0,0.77314723]
[1753377676916,0.66007962,118940.0,118930.0,1.37302723]
[1753377677316,0.72845962,118940.0,118930.0,1.37302723]
[1753377677616,0.72845962,118940.0,118930.0,1.0165521]
[1753377677820,0.72845962,118940.0,118930.0,1.66302723]
[1753377680817,0.66007962,118940.0,118930.0,1.66302723]
[1753377681019,0.49201582,118940.0,118930.0,1.66302723]
[1753377682322,0.66007962,118940.0,118930.0,1.66302723]
[1753377682520,0.49201582,118940.0,118930.0,1.66302723]
[1753377683613,0.17064,118960.0,118950.0,0.0697]
[1753377683816,0.34220874,118960.0,118950.0,1.99122996]
[1753377684015,0.14397203,118960.0,118950.0,1.99122996]
[1753377685014,0.29186203,118960.0,118950.0,1.63475483]
[1753377685217,0.39412203,118960.0,118950.0,1.63475483]
[1753377685624,0.47415203,118960.0,118950.0,1.63475483]
[1753377686525,0.68519763,118960.0,118950.0,1.03523483]
[1753377686726,0.75357763,118960.0,118950.0,1.63559483]
[1753377688228,0.75457763,118960.0,118950.0,1.63559483]
[1753377688827,0.75357763,118960.0,118950.0,1.70440208]
[1753377691428,0.75357763,118960.0,118950.0,1.70416208]
[1753377694937,0.51716203,118960.0,118950.0,1.70416208]
[1753377695731,0.19355203,118960.0,118950.0,1.70416208]
[1753377695936,0.14397203,118960.0,118950.0,2.06063721]
[1753377698332,0.14397468,118960.0,118950.0,2.06063721]
[1753377701841,0.33728468,118960.0,118950.0,1.70364208]
[1753377702240,0.43806468,118960.0,118950.0,1.34716695]
[1753377702439,0.43806468,118960.0,118950.0,1.70364208]
[1753377703046,0.41946329,118960.0,118950.0,1.70364208]
[1753377704141,0.41946329,118960.0,118950.0,1.34716695]
[1753377704440,0.41946329,118960.0,118950.0,1.70364208]
[1753377710646,0.27325329,118960.0,118950.0,1.70364208]
[1753377711448,0.27325329,118960.0,118950.0,1.70316208]
[1753377712946,0.41946329,118960.0,118950.0,1.70316208]
[1753377713147,0.44973329,118960.0,118950.0,1.70316208]
[1753377713449,0.57171329,118960.0,118950.0,1.70316208]
[1753377713848,0.57171329,118960.0,118950.0,1.70304208]
[1753377717352,0.57171329,118960.0,118950.0,1.34656695]
[1753377717740,0.57171329,118960.0,118950.0,1.70304208]
[1753377718852,0.49752329,118960.0,118950.0,1.70304208]
[1753377721350,0.44973329,118960.0,118950.0,1.70304208]
[1753377721756,0.44973329,118960.0,118950.0,1.70268208]
[1753377721956,0.44973329,118960.0,118950.0,2.05915721]
[1753377722849,0.17247329,118960.0,118950.0,2.05915721]
[1753377723251,0.12537329,118960.0,118950.0,2.05915721]
[1753377723457,0.17825,118980.0,118970.0,0.2479018]
[1753377723656,0.34305794,118980.0,118970.0,1.68357693]
[1753377723855,0.51727632,118980.0,118970.0,1.68357693]
[1753377724160,0.19222568,118980.0,118970.0,1.68357693]
[1753377724356,0.43921568,118980.0,118970.0,1.68357693]
[1753377724556,0.46948568,118980.0,118970.0,1.68357693]
[1753377724756,0.51927568,118980.0,118970.0,1.68357693]
[1753377724960,0.59346568,118980.0,118970.0,1.68357693]
[1753377725160,0.59446568,118980.0,118970.0,1.68357693]
[1753377727062,0.59446568,118980.0,118970.0,1.3271018]
[1753377727357,0.59446568,118980.0,118970.0,1.68357693]
[1753377728162,0.59446568,118980.0,118970.0,1.69195458]
[1753377728562,0.59446568,118980.0,118970.0,1.33547945]
[1753377728765,0.59446568,118980.0,118970.0,1.69195458]
[1753377731364,0.59446568,118980.0,118970.0,1.69155458]
[1753377732866,0.59240568,118980.0,118970.0,1.63810458]
[1753377734169,0.59240568,118980.0,118970.0,1.28162945]
[1753377734367,0.76041338,118980.0,118970.0,1.63810458]
[1753377734659,0.59240568,118980.0,118970.0,1.63810458]
[1753377735164,0.76041338,118980.0,118970.0,1.63810458]
[1753377735365,0.59240568,118980.0,118970.0,1.63810458]
[1753377736465,0.47248568,118980.0,118970.0,1.56899458]
[1753377736665,0.51984568,118980.0,118970.0,1.63810458]
[1753377736866,0.51984568,118980.0,118970.0,1.63790458]
[1753377737066,0.14812568,118980.0,118970.0,1.63790458]
[1753377737860,0.0031,118980.0,118970.0,1.65668923]
[1753377738767,0.02169944,118980.0,118970.0,1.65668923]
[1753377739169,0.0031,118980.0,118970.0,1.65668923]
[1753377741864,0.02169693,118980.0,118970.0,1.65668923]
[1753377743665,0.06945693,118980.0,118970.0,1.65668923]
[1753377743865,0.06945693,118980.0,118970.0,1.65632923]
[1753377745557,0.06945693,118980.0,118970.0,1.05976923]
[1753377745760,0.46005693,118980.0,118970.0,1.70325923]
[1753377745959,0.46005693,118980.0,118970.0,1.70313923]
[1753377746156,0.62806433,118980.0,118970.0,1.70313923]
[1753377746959,0.46005693,118980.0,118970.0,1.70309923]
[1753377747860,0.10230693,118980.0,118970.0,1.70309923]
[1753377748066,0.06945693,118980.0,118970.0,1.70309923]
[1753377751073,0.02169693,118980.0,118970.0,1.70309923]
[1753377751972,0.06945693,118980.0,118970.0,1.70309923]
[1753377752473,0.02169693,118980.0,118970.0,1.70309923]
[1753377752676,0.0031,118980.0,118970.0,1.70309923]
[1753377752971,0.0031,118980.0,118970.0,1.76330947]
[1753377753170,0.0031,118980.0,118970.0,1.70309923]
[1753377756275,0.26714,119000.0,118990.0,1.07381376]
[1753377756276,0.04466,119000.0,118990.0,1.07381376]
[1753377756476,0.3906,119010.0,119000.0,0.3608494]
[1753377756678,0.01859403,119010.0,119000.0,1.41379966]
[1753377756873,0.14477033,119010.0,119000.0,2.00963966]
[1753377758677,0.1281763,119010.0,119000.0,2.00963966]
[1753377759977,0.1301763,119010.0,119000.0,2.00963966]
[1753377763482,0.19428,119030.0,119020.0,0.3667812]
[1753377763685,0.21283897,119030.0,119020.0,1.6773243]
[1753377763978,0.33869982,119030.0,119020.0,1.6773243]
[1753377764181,0.46327982,119030.0,119020.0,1.6773243]
[1753377764382,0.51114982,119030.0,119020.0,1.6773243]
[1753377764683,0.51114982,119030.0,119020.0,1.74373436]
[1753377764982,0.58308982,119030.0,119020.0,1.74373436]
[1753377766581,0.58508982,119030.0,119020.0,1.74373436]
[1753377767578,0.19647982,119030.0,119020.0,1.74373436]
[1753377769384,0.14841982,119030.0,119020.0,1.74373436]
[1753377771482,0.19647982,119030.0,119020.0,1.74373436]
[1753377772784,0.14841982,119030.0,119020.0,2.10020949]
[1753377773178,0.14841982,119030.0,119020.0,1.74373436]
[1753377774287,0.02255897,119030.0,119020.0,1.74373436]
[1753377777886,0.04806,119040.0,119030.0,0.3667669]
[1753377778184,0.24239,119060.0,119050.0,0.3667387]
[1753377778390,0.24239,119060.0,119050.0,1.68793383]
[1753377778582,0.36899816,119060.0,119050.0,1.68793383]
[1753377779289,0.26468611,119060.0,119050.0,1.69626686]
[1753377779687,0.26468611,119060.0,119050.0,1.33979173]
[1753377779890,0.26468611,119060.0,119050.0,1.69626686]
[1753377780791,0.17181611,119060.0,119050.0,1.69626686]
[1753377781187,0.31803611,119060.0,119050.0,1.69626686]
[1753377781388,0.41090611,119060.0,119050.0,1.69626686]
[1753377781890,0.50683611,119060.0,119050.0,1.69626686]
[1753377782085,0.60848611,119060.0,119050.0,1.69626686]
[1753377782990,0.77638071,119060.0,119050.0,1.69594686]
[1753377783193,0.56327816,119060.0,119050.0,1.69594686]
[1753377784886,0.36569816,119060.0,119050.0,1.69594686]
[1753377785088,0.12660816,119060.0,119050.0,1.69594686]
[1753377786293,0.27282816,119060.0,119050.0,1.69594686]
[1753377786992,0.12660816,119060.0,119050.0,1.69594686]
[1753377788590,0.12660816,119060.0,119050.0,1.10154686]
[1753377788591,0.27282816,119060.0,119050.0,1.10154686]
[1753377788784,0.56327816,119060.0,119050.0,1.69566686]
[1753377789498,0.56327816,119060.0,119050.0,1.33919173]
[1753377789690,0.56327816,119060.0,119050.0,1.69566686]
[1753377789891,0.56327816,119060.0,119050.0,1.10154686]
[1753377790092,0.56327816,119060.0,119050.0,1.69566686]
[1753377791297,0.56327816,119060.0,119050.0,1.69550686]
[1753377794898,0.56327816,119060.0,119050.0,1.10154686]
[1753377795199,0.73117306,119060.0,119050.0,1.10154686]
[1753377795395,0.73117306,119060.0,119050.0,1.69534686]
[1753377795894,0.73117306,119060.0,119050.0,0.73480816]
[1753377796200,0.73117306,119060.0,119050.0,0.77000203]
[1753377796501,0.73117306,119060.0,119050.0,1.12647716]
[1753377797299,0.73117306,119060.0,119050.0,0.53271716]
[1753377797501,0.73117306,119060.0,119050.0,1.12643716]
[1753377798799,0.73117306,119060.0,119050.0,1.43643716]
[1753377799102,0.73117306,119060.0,119050.0,1.63335716]
[1753377799402,0.73117306,119060.0,119050.0,1.24974716]